bitfinex/quotes_ETHUSD_20230831
["timestamp","ask_amount","ask_price","bid_price","bid_amount"]
[1693510166728,4.774651,1654.7,1654.6,0.1]
[1693510168127,9.307191,1654.7,1654.6,0.1]
[1693510168301,13.839731,1654.7,1654.6,0.1]
[1693510168502,9.307191,1654.7,1654.6,0.1]
[1693510168686,10.8436391,1654.7,1654.6,0.1]
[1693510169318,0.242111,1654.7,1654.6,4.63281]
[1693510172020,0.242111,1654.7,1654.6,13.69843]
[1693510174640,33.06809705,1655.2,1654.6,29.0419833]
[1693510174641,30.6,1655.2,1654.6,29.0419833]
[1693510174944,0.94309705,1655.3,1654.7,2.6375]
[1693510175107,0.94309705,1655.3,1654.8,13.59615]
[1693510175312,3.36322005,1655.3,1654.9,1.359615]
[1693510175621,3.36322005,1655.3,1655.0,13.59498]
[1693510176165,0.94309705,1655.4,1655.0,16.23248]
[1693510176453,0.94309705,1655.5,1655.0,16.23248]
[1693510176655,0.94309705,1655.6,1655.2,13.59333]
[1693510177020,0.94309705,1655.6,1655.2,19.6495]
[1693510177219,31.85780905,1655.7,1655.2,19.6495]
[1693510177220,33.96259705,1655.7,1655.2,19.6495]
[1693510177427,0.94309705,1655.7,1655.2,19.6495]
[1693510177622,0.94309705,1655.7,1655.4,9.06114]
[1693510177807,2.2009061,1655.8,1655.4,9.06114]
[1693510178027,0.94309705,1655.8,1655.4,13.59176]
[1693510178207,4.35331866,1655.9,1655.4,13.59176]
[1693510178208,3.36240105,1655.9,1655.4,13.59176]
[1693510178651,0.94309705,1655.9,1655.4,13.59176]
[1693510178862,35.1155061,1656.0,1655.5,0.63121731]
[1693510179039,35.1155061,1656.0,1655.6,13.58988]
[1693510179360,35.1155061,1656.0,1655.6,16.15338]
[1693510179361,3.36221105,1656.0,1655.6,16.15338]
[1693510179567,2.2009061,1656.1,1655.6,16.15338]
[1693510179712,0.94309705,1656.1,1655.6,17.67838]
[1693510179913,3.06049705,1656.2,1655.7,1.359615]
[1693510180225,0.94309705,1656.1,1655.7,4.52967]
[1693510180458,5.47192705,1656.1,1655.7,4.52967]
[1693510180757,4.52883,1656.1,1655.7,4.52967]
[1693510180945,4.52883,1656.1,1655.6,11.62346]
[1693510181886,9.05766,1656.1,1655.6,11.62346]
[1693510182092,11.17701607,1656.1,1655.6,7.09348]
[1693510182243,12.70201607,1656.1,1655.6,2.5635]
[1693510182591,2.1279976,1656.0,1655.6,2.5635]
[1693510182890,4.52931,1655.9,1655.6,2.5635]
[1693510183588,9.05862,1655.9,1655.6,2.5635]
[1693510187594,2.418806,1656.2,1655.6,20.2437673]
[1693510187764,4.588106,1656.2,1655.6,21.7687673]
[1693510187969,9.116696,1656.2,1655.6,21.7687673]
[1693510188174,13.645286,1656.2,1655.6,15.7136973]
[1693510188369,14.97235403,1656.2,1655.6,20.2437673]
[1693510189201,12.55354803,1656.2,1655.6,20.8457673]
[1693510190097,12.55354803,1656.2,1655.6,16.3156973]
[1693510190302,25.14114893,1656.2,1655.6,2.5635]
[1693510190500,1.525,1656.0,1655.6,2.5635]
[1693510190664,10.58362,1655.9,1655.6,2.5635]
[1693510191907,9.05862,1655.9,1655.6,2.5635]
[1693510192108,5.435532,1655.8,1655.6,2.5635]
[1693510194508,16.019872,1655.8,1655.6,2.5635]
[1693510194709,9.06014,1655.6,1655.4,2.7606]
[1693510195479,9.06014,1655.6,1655.0,4.53156]
[1693510195480,1.525,1655.5,1655.0,0.49268891]
[1693510195681,9.06152,1655.4,1655.2,2.7729]
[1693510195985,6.042463,1655.4,1655.2,2.7729]
[1693510196175,1.511703,1655.4,1655.2,2.7729]
[1693510196417,10.573003,1655.4,1655.2,2.7729]
[1693510196715,9.0613,1655.4,1655.2,2.7729]
[1693510197323,13.59195,1655.4,1655.2,2.7729]
[1693510198234,9.0613,1655.4,1655.2,2.7729]
[1693510200230,10.702146,1655.5,1655.2,11.83519]
[1693510200231,4.646756,1655.5,1655.2,11.83519]
[1693510200396,2.227,1655.5,1655.2,13.171209]
[1693510200601,6.05433,1655.9,1655.3,9.2857433]
[1693510200803,30.6,1656.0,1655.5,19.94899]
[1693510201005,30.6,1656.0,1655.6,9.2857433]
[1693510201226,30.6,1656.0,1655.7,13.58925]
[1693510201431,55.366841,1656.3,1655.7,19.83469263]
[1693510202023,59.895131,1656.3,1655.7,19.83469263]
[1693510202724,55.366841,1656.3,1655.7,19.83469263]
[1693510203242,59.895131,1656.3,1655.7,19.83469263]
[1693510203545,67.1564186,1656.3,1655.7,2.71569933]
[1693510203843,2.13,1656.1,1655.6,2.757]
[1693510204142,13.58736,1656.0,1655.6,2.757]
[1693510204330,17.26769761,1656.0,1655.6,2.757]
[1693510204643,4.52953,1655.8,1655.6,2.757]
[1693510204843,8.20945761,1656.0,1655.6,2.757]
[1693510205006,10.60868761,1656.0,1655.6,2.757]
[1693510205210,4.52931,1655.9,1655.6,2.757]
[1693510205547,4.52931,1655.9,1655.2,4.53114]
[1693510205548,2.13,1655.8,1655.2,4.53114]
[1693510205735,13.58984,1655.7,1655.2,5.497496]
[1693510207911,6.64727,1655.9,1655.5,4.53021]
[1693510208205,10.89557101,1656.0,1655.5,18.3464133]
[1693510208206,7.89557101,1656.0,1655.5,18.3464133]
[1693510208407,4.52938,1655.9,1655.5,7.4580633]
[1693510208610,9.05876,1655.9,1655.5,4.53032]
[1693510208847,7.59444001,1656.0,1655.5,9.06067]
[1693510209447,10.01351201,1656.0,1655.5,13.59102]
[1693510209746,5.48441201,1656.0,1655.5,13.59102]
[1693510210049,0.94734001,1656.0,1655.6,9.2857433]
[1693510210211,0.94734001,1656.0,1655.7,14.51782433]
[1693510210612,0.94734001,1656.0,1655.7,20.21886763]
[1693510210811,0.94734001,1656.0,1655.7,20.82086763]
[1693510211946,0.94734001,1656.0,1655.7,17.89312433]
[1693510212154,0.94734001,1656.0,1655.7,7.30308]
[1693510212307,5.47637001,1656.0,1655.7,7.30308]
[1693510212509,0.94734001,1656.0,1655.7,7.30308]
[1693510212719,0.94734001,1656.0,1655.7,11.83288]
[1693510213144,0.94734001,1656.0,1655.7,7.30308]
[1693510213345,6.02396901,1656.0,1655.7,2.7733]
[1693510213750,5.47636001,1656.0,1655.7,7.30305]
[1693510214133,0.94734001,1656.0,1655.7,7.30305]
[1693510214335,0.94734001,1656.0,1655.7,11.83285]
[1693510214858,0.94734001,1656.0,1655.7,16.36265]
[1693510216028,0.94734001,1656.0,1655.7,19.2903933]
[1693510216231,0.94734001,1656.0,1655.8,1.92903933]
[1693510216461,0.94734001,1656.0,1655.9,9.0585]
[1693510218652,3.27359485,1656.3,1655.9,16.5154933]
[1693510218839,2.3298,1656.3,1655.9,16.5154933]
[1693510219150,34.7251904,1656.5,1656.1,13.58571]
[1693510219324,3.17809485,1656.5,1656.3,4.52816]
[1693510219534,3.17809485,1656.5,1656.3,9.05632]
[1693510219733,2.2343,1656.5,1656.3,9.05632]
[1693510220136,3.17809485,1656.5,1656.3,9.05632]
[1693510220468,3.17809485,1656.5,1656.2,4.52821]
[1693510220681,8.60209965,1656.5,1656.1,7.07663]
[1693510220969,8.60209965,1656.5,1656.1,11.60521]
[1693510220970,13.12971965,1656.5,1656.1,11.60521]
[1693510221126,3.17809485,1656.5,1656.1,16.13392]
[1693510222054,3.17809485,1656.5,1656.1,11.60521]
[1693510222257,7.70572485,1656.5,1656.1,11.60521]
[1693510222426,8.6527738,1656.5,1656.1,11.60521]
[1693510222626,10.25392864,1656.5,1656.1,11.60521]
[1693510222925,5.72629864,1656.5,1656.1,11.60521]
[1693510223328,4.1251438,1656.5,1656.1,11.60521]
[1693510224987,13.1803638,1656.5,1656.1,2.548]
[1693510225280,0.94379485,1656.4,1656.1,2.548]
[1693510225562,4.52794,1656.4,1656.1,2.548]
[1693510225724,5.47173485,1656.4,1656.1,2.548]
[1693510225926,11.7168833,1656.4,1656.1,2.548]
[1693510226749,7.1889433,1656.4,1656.1,2.548]
[1693510226929,5.47173485,1656.4,1656.1,2.548]
[1693510227123,5.38353694,1656.5,1656.1,11.60535]
[1693510227330,4.1251438,1656.5,1656.1,11.60535]
[1693510227662,4.1251438,1656.5,1656.1,16.13406]
[1693510227855,4.1251438,1656.5,1656.2,1.613406]
[1693510228057,4.1251438,1656.5,1656.3,4.52816]
[1693510228866,5.38353694,1656.5,1656.3,4.52816]
[1693510229066,4.1251438,1656.5,1656.3,9.05632]
[1693510229765,2.2343,1656.5,1656.3,9.05632]
[1693510229968,0.94379485,1656.5,1656.3,15.1042756]
[1693510230271,2.20218799,1656.6,1656.3,15.1042756]
[1693510230478,0.94379485,1656.6,1656.3,15.1042756]
[1693510233444,0.94379485,1656.6,1656.3,18.0320189]
[1693510233681,0.94379485,1656.6,1656.4,1.80320189]
[1693510233881,0.94379485,1656.6,1656.5,9.05522]
[1693510234181,3.62859314,1656.7,1656.5,9.05522]
[1693510234182,0.101,1656.7,1656.5,24.9985733]
[1693510234385,0.101,1656.7,1656.6,9.2857433]
[1693510234554,0.101,1656.7,1656.6,25.8677633]
[1693510234757,0.101,1656.7,1656.6,27.91051492]
[1693510235279,0.101,1656.7,1656.6,4.97049492]
[1693510235680,0.101,1656.7,1656.6,2.04275162]
[1693510236275,0.101,1656.7,1656.5,0.602]
[1693510236464,0.101,1656.7,1656.4,2.7724]
[1693510236647,4.6281,1656.7,1656.4,3.3744]
[1693510237550,0.101,1656.7,1656.4,7.90228]
[1693510237951,0.101,1656.7,1656.4,19.8858033]
[1693510238157,0.101,1656.7,1656.6,9.05468]
[1693510238758,0.101,1656.7,1656.6,4.52734]
[1693510239361,0.101,1656.7,1656.6,9.05468]
[1693510240685,0.101,1656.7,1656.6,13.58202]
[1693510240886,0.101,1656.7,1656.6,9.05468]
[1693510241099,0.101,1656.7,1656.6,11.12467903]
[1693510241675,0.101,1656.7,1656.6,15.65201903]
[1693510242591,0.101,1656.7,1656.6,24.93776233]
[1693510242975,0.101,1656.7,1656.6,25.53976233]
[1693510243513,0.101,1656.7,1656.6,11.72667903]
[1693510243703,0.101,1656.7,1656.6,7.19933903]
[1693510243923,0.101,1656.7,1656.6,14.65442233]
[1693510244082,0.101,1656.7,1656.6,29.01976233]
[1693510244972,0.101,1656.7,1656.6,24.49242233]
[1693510245404,0.101,1656.7,1656.6,29.01976233]
[1693510246323,0.101,1656.7,1656.6,24.01242233]
[1693510246524,0.101,1656.7,1656.6,28.53976233]
[1693510248024,0.101,1656.7,1656.6,24.01242233]
[1693510248826,0.101,1656.7,1656.6,28.53976233]
[1693510249621,0.101,1656.7,1656.6,24.01242233]
[1693510250293,0.101,1656.7,1656.6,28.53976233]
[1693510250490,0.101,1656.7,1656.6,24.01242233]
[1693510250823,0.101,1656.7,1656.6,28.53976233]
[1693510252636,0.101,1656.7,1656.6,13.12708233]
[1693510252843,0.101,1656.7,1656.6,14.65442233]
[1693510253615,0.101,1656.7,1656.6,21.01242233]
[1693510255458,0.101,1656.7,1656.6,8.0570833]
[1693510255743,0.101,1656.7,1656.5,1.08930301]
[1693510256045,0.101,1656.7,1656.5,10.14418301]
[1693510257214,0.101,1656.7,1656.5,17.59953631]
[1693510257541,0.101,1656.7,1656.6,3.0]
[1693510257712,0.101,1656.7,1656.6,19.27777363]
[1693510258047,0.101,1656.7,1656.6,19.87977363]
[1693510259512,0.101,1656.7,1656.6,22.80751693]
[1693510259946,0.101,1656.7,1656.6,29.16551693]
[1693510260720,0.101,1656.7,1656.6,30.68551693]
[1693510261053,0.101,1656.7,1656.6,31.16551693]
[1693510262055,0.101,1656.8,1656.7,9.96]
[1693510262264,0.101,1657.0,1656.9,9.358]
[1693510262440,0.101,1657.0,1656.9,38.5203433]
[1693510262768,0.101,1657.1,1656.9,39.0003433]
[1693510263063,0.101,1657.3,1657.2,3.602]
[1693510263271,0.101,1657.3,1657.2,32.9905433]
[1693510263436,0.101,1657.3,1657.2,35.68629693]
[1693510267281,0.101,1657.3,1657.2,34.16629693]
[1693510267455,0.101,1657.3,1657.2,36.29229693]
[1693510268061,0.101,1657.3,1657.2,31.76659693]
[1693510272103,0.101,1657.3,1657.2,39.29229693]
[1693510272507,0.101,1657.3,1657.2,39.77704141]
[1693510273077,0.101,1657.3,1657.2,35.25134141]
[1693510282312,0.101,1657.3,1657.2,33.12534141]
[1693510283004,0.101,1657.3,1657.2,35.25134141]
[1693510292358,0.101,1657.3,1657.2,34.64334141]
[1693510304071,2.333431,1657.6,1657.2,34.64334141]
[1693510304264,2.333431,1657.6,1657.5,8.478]
[1693510304459,2.333431,1657.6,1657.5,27.9803833]
[1693510305294,2.333431,1657.6,1657.5,26.4623833]
[1693510308688,2.333431,1657.6,1657.5,19.5023833]
[1693510314616,3.59182414,1657.6,1657.5,19.5023833]
[1693510314817,3.59182414,1657.6,1657.5,22.05691663]
[1693510315803,5.16481556,1657.6,1657.5,22.05691663]
[1693510315991,5.16481556,1657.6,1657.5,19.5023833]
[1693510316625,3.90642242,1657.6,1657.5,19.5023833]
[1693510317600,2.333431,1657.6,1657.5,19.5023833]
[1693510318525,4.22102071,1657.6,1657.5,19.5023833]
[1693510318821,4.22102071,1657.6,1657.5,22.10625841]
[1693510320704,2.333431,1657.6,1657.5,22.10625841]
[1693510320903,4.23121407,1657.6,1657.5,22.10625841]
[1693510323341,4.23121407,1657.6,1657.5,19.5023833]
[1693510325698,2.333431,1657.6,1657.3,0.602]
[1693510325933,1.26555271,1657.4,1657.3,3.5297433]
[1693510326105,1.26555271,1657.4,1657.3,20.1058033]
[1693510327846,1.26555271,1657.4,1657.3,30.9818033]
[1693510328019,0.106531,1657.6,1657.5,32.5844]
[1693510328226,0.106531,1657.6,1657.5,38.9921433]
[1693510328451,1e-06,1657.6,1657.5,42.0281433]
[1693510328614,0.101,1657.7,1657.5,42.0281433]
[1693510328953,0.101,1657.8,1657.7,9.96]
[1693510329114,0.101,1657.8,1657.7,41.81601763]
[1693510329447,0.101,1657.9,1657.7,42.29601763]
[1693510329742,0.101,1657.9,1657.8,27.9779233]
[1693510329946,0.101,1657.9,1657.8,28.4579233]
[1693510330148,0.101,1658.1,1657.8,28.4579233]
[1693510330322,0.101,1658.2,1658.0,35.5413433]
[1693510330648,0.101,1658.2,1658.1,24.00972]
[1693510330974,0.101,1658.3,1658.1,31.4554633]
[1693510331131,0.101,1658.4,1658.2,11.4057433]
[1693510331323,0.101,1658.4,1658.3,30.0488]
[1693510331519,0.101,1658.4,1658.3,36.07472363]
[1693510334162,0.101,1658.4,1658.3,39.07472363]
[1693510336822,2.1189,1658.8,1658.3,39.07472363]
[1693510337142,0.101,1659.0,1658.7,13.56465]
[1693510337347,0.101,1659.0,1658.8,11.9704133]
[1693510337527,2.2061,1659.0,1658.8,16.4917533]
[1693510337732,2.2061,1659.0,1658.8,11.9704133]
[1693510338415,2.2061,1659.0,1658.8,7.4490733]
[1693510338622,2.2061,1659.0,1658.8,2.9277433]
[1693510339642,2.2061,1659.0,1658.8,7.4490433]
[1693510339839,2.2061,1659.0,1658.8,17.68877563]
[1693510340923,2.2061,1659.0,1658.8,13.16743563]
[1693510341153,2.2061,1659.0,1658.8,11.9703833]
[1693510342649,2.2061,1659.0,1658.8,2.9277433]
[1693510342852,2.2061,1659.0,1658.8,7.4490433]
[1693510343648,2.2061,1659.0,1658.8,2.9277433]
[1693510343849,2.2061,1659.0,1658.8,7.4490033]
[1693510344549,2.2061,1659.0,1658.8,11.9703433]
[1693510347267,2.2061,1659.0,1658.8,9.0426]
[1693510347465,2.2061,1659.0,1658.8,4.52126]
[1693510348173,12.2061,1659.0,1658.8,4.52126]
[1693510348335,13.42671,1659.0,1658.7,4.52142]
[1693510349259,12.2061,1659.0,1658.7,13.56464]
[1693510349440,12.2061,1659.0,1658.7,16.4923833]
[1693510349632,12.2061,1659.0,1658.8,2.9277433]
[1693510349835,12.2061,1659.0,1658.9,13.56318]
[1693510350032,12.2061,1659.0,1658.9,16.4909233]
[1693510350254,12.2061,1659.0,1658.9,18.14001563]
[1693510351651,12.2061,1659.0,1658.9,13.61895563]
[1693510351863,12.2061,1659.0,1658.9,7.4488033]
[1693510352168,12.2061,1659.0,1658.9,11.9698633]
[1693510352978,12.2061,1659.0,1658.9,7.4488033]
[1693510353334,12.2061,1659.0,1658.9,2.9277433]
[1693510353678,12.2061,1659.0,1658.4,0.602]
[1693510353679,18.24289,1659.0,1658.4,0.602]
[1693510353839,15.998445,1659.0,1658.6,5.12388]
[1693510354169,15.998445,1659.0,1658.6,12.5735033]
[1693510354170,14.482445,1659.0,1658.6,12.5735033]
[1693510354376,12.2061,1659.0,1658.6,12.5735033]
[1693510357370,12.2061,1659.0,1658.6,11.9715033]
[1693510357575,16.72691,1659.0,1658.6,2.9277433]
[1693510358343,12.2061,1659.0,1658.6,2.9277433]
[1693510358975,11.2061,1659.0,1658.6,2.9277433]
[1693510359557,15.72691,1659.0,1658.6,2.9277433]
[1693510359765,17.903256,1659.0,1658.6,2.9277433]
[1693510360641,25.3518093,1659.0,1658.2,0.48369801]
[1693510360942,1.516,1658.5,1658.2,2.9277433]
[1693510361782,12.69583,1658.6,1658.2,2.9277433]
[1693510361943,8.1738,1658.6,1658.2,2.9277433]
[1693510364359,9.895543,1658.6,1658.2,2.9277433]
[1693510365350,8.1738,1658.6,1658.2,2.9277433]
[1693510366343,11.17981,1658.6,1658.0,6.3467]
[1693510366549,1.516,1658.5,1658.1,2.9277433]
[1693510366781,6.03823,1658.5,1658.1,2.9277433]
[1693510367078,4.52247,1658.4,1658.1,2.9277433]
[1693510368348,9.04494,1658.4,1658.1,2.9277433]
[1693510368978,4.52247,1658.4,1658.1,2.9277433]
[1693510370272,9.04494,1658.4,1658.1,2.9277433]
[1693510371057,4.52247,1658.4,1658.1,2.9277433]
[1693510371460,9.04453,1658.5,1658.1,2.9277433]
[1693510371770,4.52223,1658.5,1658.1,2.9277433]
[1693510371990,4.52223,1658.5,1658.1,3.5297433]
[1693510372284,4.52223,1658.5,1658.1,3.88271763]
[1693510373277,9.04453,1658.5,1658.1,3.88271763]
[1693510373474,9.04453,1658.5,1658.1,3.5297433]
[1693510373750,4.52223,1658.5,1658.1,3.5297433]
[1693510374785,9.04453,1658.5,1658.1,3.5297433]
[1693510374976,1.516,1658.4,1658.1,3.5297433]
[1693510375173,6.03866,1658.4,1658.1,3.94550211]
[1693510375359,6.03823,1658.5,1658.1,3.94550211]
[1693510375556,4.52223,1658.5,1658.1,3.34350211]
[1693510376769,8.17369,1658.6,1658.2,1.04870745]
[1693510376770,2.1358,1658.6,1658.2,1.04870745]
[1693510376987,2.1358,1658.6,1658.3,2.9277433]
[1693510380369,2.1358,1658.6,1658.4,3.0]
[1693510380565,10.55888,1658.8,1658.2,3.0]
[1693510380802,10.605358,1658.8,1658.3,2.9277433]
[1693510380963,2.1884,1658.7,1658.3,2.9277433]
[1693510381367,6.71003,1658.7,1658.3,2.9277433]
[1693510382203,11.23166,1658.7,1658.3,2.9277433]
[1693510382497,1.516,1658.6,1658.1,0.602]
[1693510382697,15.75329,1658.7,1657.9,3.0993]
[1693510382698,1.516,1658.4,1657.9,3.0993]
[1693510382898,4.5227,1658.3,1658.0,2.9277433]
[1693510383080,6.0387,1658.3,1658.0,2.9277433]
[1693510384102,4.5227,1658.3,1658.0,2.9277433]
[1693510385405,4.5227,1658.3,1657.8,8.00912159]
[1693510385406,10.5614,1658.3,1657.8,0.602]
[1693510385606,15.0841,1658.3,1657.9,2.9277433]
[1693510385907,1.516,1658.2,1657.8,0.602]
[1693510386206,9.04676,1658.1,1657.7,2.6768]
[1693510386407,9.04676,1658.1,1657.7,2.9277433]
[1693510386408,10.56276,1658.1,1657.7,2.9277433]
[1693510387007,15.08614,1658.1,1657.7,2.9277433]
[1693510387239,17.28634,1658.1,1657.7,2.9277433]
[1693510387394,17.28634,1658.1,1657.7,3.28071763]
[1693510387786,15.77034,1658.1,1657.7,3.28071763]
[1693510388904,15.08765,1657.9,1657.5,3.14436532]
[1693510389114,15.08765,1657.9,1657.6,2.9277433]
[1693510389497,15.08765,1657.9,1657.4,0.602]
[1693510389675,9.04877,1657.7,1657.4,3.5297433]
[1693510389878,9.04877,1657.7,1657.4,4.15836763]
[1693510391027,1.516,1657.5,1657.1,1.09073074]
[1693510391189,1.516,1657.5,1657.2,2.9277433]
[1693510391516,1.516,1657.5,1657.2,7.4533733]
[1693510392115,2.0611,1657.7,1657.2,16.5047733]
[1693510392325,1.516,1657.9,1657.5,4.52487]
[1693510393022,1.516,1657.8,1657.4,7.062]
[1693510393222,6.04011,1657.8,1657.4,9.9897433]
[1693510393784,4.52411,1657.8,1657.4,9.9897433]
[1693510394084,4.52411,1657.8,1657.4,11.60630436]
[1693510394284,6.03979,1657.9,1657.4,16.13145436]
[1693510395091,1.516,1657.9,1657.4,20.65660436]
[1693510395296,10.517054,1658.0,1657.4,20.65660436]
[1693510397518,1.516,1657.8,1657.4,19.0400433]
[1693510397889,1.516,1657.8,1657.4,14.5148933]
[1693510398521,3.6584,1657.8,1657.4,14.5148933]
[1693510398910,2.1424,1657.8,1657.4,14.5148933]
[1693510400425,2.1424,1657.8,1657.4,7.062]
[1693510400719,12.008822,1657.8,1657.4,2.537]
[1693510401127,1.516,1657.7,1657.4,2.537]
[1693510401430,4.52461,1657.6,1657.1,13.28149483]
[1693510401725,4.52461,1657.6,1657.2,9.60399003]
[1693510401923,6.54901,1657.6,1657.2,8.5548433]
[1693510402124,6.54901,1657.6,1657.1,5.75566483]
[1693510402330,1.516,1657.2,1656.8,0.62784483]
[1693510402633,6.04184,1657.2,1656.7,0.72784483]
[1693510402920,6.04148,1657.3,1656.8,10.10290779]
[1693510403119,6.04148,1657.3,1656.8,9.05353]
[1693510403293,6.04148,1657.3,1656.8,10.48435048]
[1693510403893,10.56691,1657.3,1656.8,5.95756048]
[1693510404142,6.04143,1657.3,1656.8,5.95756048]
[1693510404441,6.04143,1657.3,1656.9,1.04937158]
[1693510404898,6.04143,1657.3,1656.9,3.64737158]
[1693510405104,6.04143,1657.3,1656.9,2.598]
[1693510405311,10.56686,1657.3,1656.9,2.598]
[1693510406636,10.56686,1657.3,1656.9,2.598]
[1693510407240,6.04143,1657.3,1656.9,2.598]
[1693510407437,2.0244,1657.4,1657.0,3.97708507]
[1693510407714,36.64035,1657.7,1657.1,9.05189]
[1693510407908,30.6,1657.7,1657.1,16.5056033]
[1693510408143,30.6,1657.7,1657.3,4.52531]
[1693510408345,2.1591,1657.6,1657.3,4.52531]
[1693510408749,2.1591,1657.6,1657.3,18.0199133]
[1693510408916,48.42,1657.8,1657.4,4.4437433]
[1693510409121,30.6,1658.0,1657.5,13.57449]
[1693510409316,30.6,1658.0,1657.6,4.2851923]
[1693510409517,1.516,1658.2,1657.7,9.04856]
[1693510409869,84.91985902,1658.3,1657.7,9.04856]
[1693510409870,91.44060516,1658.3,1657.7,13.5729]
[1693510410075,91.44060516,1658.3,1657.7,9.04856]
[1693510410526,91.90480835,1658.3,1657.7,9.04856]
[1693510410731,91.90480835,1658.3,1657.7,10.75393392]
[1693510411338,94.10680835,1658.3,1657.7,10.75393392]
[1693510412340,92.59080835,1658.3,1657.7,10.75393392]
[1693510412568,86.69088933,1658.3,1657.7,13.68167722]
[1693510412772,82.16804933,1658.3,1657.7,18.20601722]
[1693510413135,86.69087933,1658.3,1657.7,18.20601722]
[1693510413543,7.67087933,1658.3,1657.7,18.20601722]
[1693510413743,7.67087933,1658.3,1657.8,1.66377186]
[1693510413939,12.19370933,1658.3,1657.8,6.18771186]
[1693510414626,3.14804933,1658.3,1657.8,13.63951516]
[1693510415751,3.14804933,1658.3,1657.8,18.16357516]
[1693510418839,7.67076933,1658.3,1657.8,18.16357516]
[1693510419028,7.67076933,1658.3,1657.9,1.65056033]
[1693510419324,7.67076933,1658.3,1657.9,6.17422033]
[1693510421528,14.31848933,1658.3,1657.9,4.18116033]
[1693510422031,2.125,1658.1,1657.6,3.0]
[1693510422272,4.52365,1658.0,1657.7,5.4583433]
[1693510423862,13.57095,1658.0,1657.5,0.602]
[1693510424086,13.57095,1658.0,1657.6,2.9277433]
[1693510424238,13.57095,1658.0,1657.6,3.54253763]
[1693510424437,4.52365,1658.0,1657.6,8.06712763]
[1693510427465,2.1278,1658.1,1657.6,17.11634763]
[1693510427668,3.01234933,1658.3,1657.6,17.11634763]
[1693510427977,7.53504933,1658.3,1657.6,17.11634763]
[1693510428177,7.53504933,1658.3,1657.7,1.71163476]
[1693510428360,7.53504933,1658.3,1657.8,11.9754933]
[1693510428557,7.53504933,1658.3,1657.8,14.7317933]
[1693510428757,2.0663,1658.3,1657.8,19.2558533]
[1693510428961,2.0663,1658.3,1657.9,3.0]
[1693510429162,2.0663,1658.3,1658.0,9.04692]
[1693510429464,2.0663,1658.3,1658.0,10.54438633]
[1693510429975,33.96134481,1658.5,1658.1,2.9277433]
[1693510430148,4.52167,1658.7,1658.2,9.04585]
[1693510430472,2.0663,1658.7,1658.2,16.4965633]
[1693510431269,2.125,1658.5,1658.1,3.3583]
[1693510431570,2.125,1658.5,1658.1,2.7563]
[1693510431571,4.52248,1658.4,1658.1,2.7563]
[1693510432671,4.52248,1658.4,1658.1,7.27954]
[1693510432872,4.52248,1658.4,1658.1,2.7563]
[1693510433569,4.52248,1658.4,1658.1,7.27951]
[1693510434067,6.66995,1658.5,1658.1,8.459796]
[1693510434436,2.1477,1658.5,1658.1,8.459796]
[1693510435072,2.1477,1658.5,1658.1,12.983036]
[1693510435272,2.1477,1658.5,1658.1,15.9107793]
[1693510435471,91.13362363,1658.8,1658.3,9.0454]
[1693510435646,2.1437,1658.7,1658.4,2.9277433]
[1693510435848,85.82145166,1658.8,1658.4,2.9277433]
[1693510435849,0.94579363,1658.8,1658.4,2.9277433]
[1693510436057,0.94579363,1658.8,1658.5,9.0442]
[1693510436257,0.94579363,1658.8,1658.5,11.9719433]
[1693510437979,2.1437,1658.9,1658.5,16.4940933]
[1693510438282,2.1437,1658.9,1658.5,18.85901063]
[1693510438986,2.1437,1658.9,1658.5,19.46101063]
[1693510439281,10.0,1659.0,1658.6,2.9277433]
[1693510439463,10.0,1659.0,1658.7,9.0431]
[1693510439858,10.0,1659.0,1658.7,16.10261]
[1693510440246,10.0,1659.0,1658.7,17.22292702]
[1693510440881,10.0,1659.0,1658.7,12.70131702]
[1693510441653,10.0,1659.0,1658.7,8.17976702]
[1693510442073,10.0,1659.0,1658.7,20.15073032]
[1693510444971,10.0,1659.0,1658.8,2.9277433]
[1693510445176,10.0,1659.0,1658.9,9.04212]
[1693510445376,10.0,1659.0,1658.9,5.71804633]
[1693510445892,10.0,1659.0,1658.9,10.23910633]
[1693510446294,10.0,1659.0,1658.9,13.16684963]
[1693510447491,10.0,1659.0,1658.9,21.28990963]
[1693510447659,10.0,1659.0,1658.9,23.89490963]
[1693510448565,10.0,1659.0,1658.9,30.25290963]
[1693510450261,9.3710948,1659.0,1658.9,30.25290963]
[1693510450461,9.3710948,1659.0,1658.9,33.25290963]
[1693510451085,5.4366248,1659.0,1658.9,33.25290963]
[1693510453092,0.101,1659.3,1659.2,12.8877433]
[1693510453278,0.005531,1659.6,1659.4,9.96]
[1693510453476,0.005531,1659.6,1659.5,26.7324633]
[1693510453681,0.005531,1659.6,1659.5,27.2124633]
[1693510454099,0.005531,1659.6,1659.5,11.0491733]
[1693510454309,30.555531,1659.8,1659.5,21.64491763]
[1693510454503,30.555531,1659.8,1659.6,2.9277433]
[1693510454664,30.555531,1659.8,1659.6,8.0487233]
[1693510454868,30.555531,1659.8,1659.6,12.5678833]
[1693510455370,0.101,1660.0,1659.6,20.0870433]
[1693510455568,0.101,1660.0,1659.8,9.03722]
[1693510455768,0.101,1660.0,1659.9,2.9277433]
[1693510456023,0.101,1660.0,1659.9,7.4460833]
[1693510457016,0.101,1660.0,1659.9,2.9277433]
[1693510457330,0.101,1660.0,1659.7,9.44719002]
[1693510457526,0.101,1660.0,1659.8,2.9277433]
[1693510457723,0.101,1660.0,1659.7,6.44719002]
[1693510457930,0.101,1660.0,1659.7,7.4465433]
[1693510458273,0.101,1660.0,1659.8,2.9277433]
[1693510458499,0.101,1660.0,1659.8,7.4462233]
[1693510458880,0.101,1660.0,1659.8,11.9648333]
[1693510459579,4.61907,1660.0,1659.6,0.602]
[1693510459780,4.61907,1660.0,1659.7,2.9277433]
[1693510461798,9.13714,1660.0,1659.7,2.9277433]